fUST/lending_fUST_20251229
["ID","MTS","AMOUNT","RATE_DAILY","PERIOD"]
[399967537,1766953834662,-151.0,0.00019178,2]
[399967538,1766953834671,-151.0,0.00019178,2]
[399967539,1766953834680,-224.691212,0.00019178,2]
[399967540,1766953834689,-191.245452,0.00019178,2]
[399967541,1766953834699,-191.245452,0.00019178,2]
[399967542,1766953834710,-191.245452,0.00019178,2]
[399967543,1766953834719,-191.245452,0.00019178,2]
[399967544,1766953834729,-191.245452,0.00019178,2]
[399967545,1766953834738,-191.245452,0.00019178,2]
[399967546,1766953834748,-191.245452,0.00019178,2]
[399967547,1766953834757,-191.245456,0.00019178,2]
[399967548,1766953834767,-151.0,0.00019178,2]
[399967549,1766953834776,-151.0,0.00019178,2]
[399967550,1766953834786,-231.386511,0.00019178,2]
[399967551,1766953834795,-249.067044,0.00019178,2]
[399967552,1766953834805,-231.386511,0.00019178,2]
[399967553,1766953834814,-231.386511,0.00019178,2]
[399967554,1766953834823,-231.386511,0.00019178,2]
[399967555,1766953834833,-231.386511,0.00019178,2]
[399967556,1766953834842,-231.386511,0.00019178,2]
[399967557,1766953834852,-231.386511,0.00019178,2]
[399967558,1766953834861,-231.386511,0.00019178,2]
[399967559,1766953834871,-231.386511,0.00019178,2]
[399967560,1766953834880,-231.386511,0.00019178,2]
[399967561,1766953834889,-231.386511,0.00019178,2]
[399967562,1766953834899,-231.386511,0.00019178,2]
[399967563,1766953834909,-231.386511,0.00019178,2]
[399967564,1766953834918,-231.386511,0.00019178,2]
[399967565,1766953834928,-231.386511,0.00019178,2]
[399967566,1766953834937,-231.386511,0.00019178,2]
[399967567,1766953834946,-231.386511,0.00019178,2]
[399967568,1766953834956,-231.386511,0.00019178,2]
[399967569,1766953834966,-231.386511,0.00019178,2]
[399967570,1766953834975,-231.386511,0.00019178,2]
[399967571,1766953834985,-151.0,0.00019178,2]
[399967572,1766953834995,-151.0,0.00019178,2]
[399967573,1766953835005,-151.0,0.00019178,2]
[399967574,1766953835015,-151.0,0.00019178,2]
[399967575,1766953835025,-151.0,0.00019178,2]
[399967576,1766953835045,-151.0,0.00019178,2]
[399967577,1766953835055,-151.0,0.00019178,2]
[399967578,1766953835067,-151.0,0.00019178,2]
[399967579,1766953835077,-151.0,0.00019178,2]
[399967580,1766953835088,-151.0,0.00019178,2]
[399967581,1766953835098,-151.0,0.00019178,2]
[399967582,1766953835108,-151.0,0.00019178,2]
[399967583,1766953835117,-151.0,0.00019178,2]
[399967584,1766953835127,-151.0,0.00019178,2]
[399967585,1766953835138,-151.0,0.00019178,2]
[399967586,1766953835148,-151.0,0.00019178,2]
[399967587,1766953835160,-151.0,0.00019178,2]
[399967588,1766953835170,-275.347182,0.00019178,2]
[399967589,1766953835181,-151.0,0.00019178,2]
[399967590,1766953835191,-151.0,0.00019178,2]
[399967591,1766953835201,-151.0,0.00019178,2]
[399967592,1766953835211,-151.0,0.00019178,2]
[399967593,1766953835222,-294.152848,0.00019178,2]
[399967594,1766953835233,-151.0,0.00019178,2]
[399967595,1766953835243,-151.0,0.00019178,2]
[399967596,1766953835253,-151.0,0.00019178,2]
[399967597,1766953835263,-151.0,0.00019178,2]
[399967598,1766953835274,-151.0,0.00019178,2]
[399967599,1766953835284,-151.0,0.00019178,2]
[399967600,1766953835295,-151.0,0.00019178,2]
[399967601,1766953835305,-151.0,0.00019178,2]
[399967602,1766953835314,-151.0,0.00019178,2]
[399967603,1766953835324,-151.0,0.00019178,2]
[399967604,1766953835334,-151.0,0.00019178,2]
[399967605,1766953835344,-151.0,0.00019178,2]
[399967606,1766953835353,-238.364622,0.00019178,2]
[399967607,1766953835362,-264.153595,0.00019178,2]
[399967608,1766953835372,-151.0,0.00019178,2]
[399967609,1766953835382,-151.461106,0.00019178,2]
[399967610,1766953835392,-151.0,0.00019178,2]
[399967611,1766953835402,-151.0,0.00019178,2]
[399967612,1766953835411,-151.0,0.00019178,2]
[399967613,1766953835420,-151.0,0.00019178,2]
[399967614,1766953835430,-151.0,0.00019178,2]
[399967615,1766953835441,-151.0,0.00019178,2]
[399967616,1766953835450,-151.0,0.00019178,2]
[399967617,1766953835460,-151.0,0.00019178,2]
[399967618,1766953835469,-151.0,0.00019178,2]
[399967619,1766953835479,-151.0,0.00019178,2]
[399967620,1766953835488,-151.0,0.00019178,2]
[399967621,1766953835498,-151.0,0.00019178,2]
[399967622,1766953835507,-235.0,0.00019178,2]
[399967623,1766953835516,-151.0,0.00019178,2]
[399967624,1766953835526,-152.251076,0.00019178,2]
[399967625,1766953835535,-151.0,0.00019178,2]
[399967626,1766953835545,-151.0,0.00019178,2]
[399967627,1766953835554,-151.0,0.00019178,2]
[399967628,1766953835564,-151.0,0.00019178,2]
[399967629,1766953835573,-231.581003,0.00019178,2]
[399967630,1766953835582,-205.896426,0.00019178,2]
[399967631,1766953835592,-205.896426,0.00019178,2]
[399967632,1766953835602,-167.845049,0.00019178,2]
[399967633,1766953835612,-205.896426,0.00019178,2]
[399967634,1766953835622,-167.845049,0.00019178,2]
[399967635,1766953835632,-205.896426,0.00019178,2]
[399967636,1766953835643,-167.845049,0.00019178,2]
[399967637,1766953835652,-205.896426,0.00019178,2]
[399967638,1766953835662,-167.845049,0.00019178,2]
[399967639,1766953835672,-205.896426,0.00019178,2]
[399967640,1766953835682,-167.845049,0.00019178,2]
[399967641,1766953835692,-167.845049,0.00019178,2]
[399967642,1766953835702,-205.896426,0.00019178,2]
[399967643,1766953835712,-167.845049,0.00019178,2]
[399967644,1766953835721,-205.896426,0.00019178,2]
[399967645,1766953835731,-167.845049,0.00019178,2]
[399967646,1766953835742,-205.896426,0.00019178,2]
[399967647,1766953835751,-167.845049,0.00019178,2]
[399967648,1766953835761,-205.896426,0.00019178,2]
[399967649,1766953835771,-167.845049,0.00019178,2]
[399967650,1766953835780,-167.845049,0.00019178,2]
[399967651,1766953835791,-205.896426,0.00019178,2]
[399967652,1766953835802,-167.845049,0.00019178,2]
[399967653,1766953835812,-205.896426,0.00019178,2]
[399967654,1766953835823,-167.845049,0.00019178,2]
[399967655,1766953835834,-205.896426,0.00019178,2]
[399967656,1766953835844,-167.845049,0.00019178,2]
[399967657,1766953835855,-205.896426,0.00019178,2]
[399967658,1766953835864,-167.845049,0.00019178,2]
[399967659,1766953835874,-205.896426,0.00019178,2]
[399967660,1766953835884,-167.845049,0.00019178,2]
[399967661,1766953835894,-205.896426,0.00019178,2]
[399967662,1766953835904,-167.845049,0.00019178,2]
[399967663,1766953835914,-205.896426,0.00019178,2]
[399967664,1766953835923,-205.896426,0.00019178,2]
[399967665,1766953835933,-167.845049,0.00019178,2]
[399967666,1766953835943,-205.896426,0.00019178,2]
[399967667,1766953835952,-167.845049,0.00019178,2]
[399967668,1766953835963,-205.896422,0.00019178,2]
[399967669,1766953835973,-167.845046,0.00019178,2]
[399967670,1766953835983,-151.0,0.00019178,2]
[399967671,1766953835992,-151.00001,0.00019178,2]
[399967672,1766953836002,-667.248471,0.00019178,2]
[399967673,1766953836012,-547.69343504,0.00019178,2]
[399967676,1766953838250,-1683.516398,0.00015412,2]
[399967707,1766953840541,-50490.18737863,0.00015412,2]
[399968114,1766953844584,-4131.12882622,0.00015258,2]
[399968195,1766953845379,-868.87117378,0.00015258,2]
[399968197,1766953845390,-462.02776696,0.00015412,2]
[399968199,1766953845401,-1046.32681666,0.00015412,2]
[399968298,1766953846340,-6645.3536406,0.00015412,2]
[399968465,1766953915049,150.0,6.355e-05,2]
[399968466,1766953915474,150.0,6.932e-05,2]
[399968467,1766953915858,150.0,7.51e-05,2]
[399968468,1766953916241,150.0,8.088e-05,2]
[399968469,1766953916712,150.0,8.665e-05,2]
[399968470,1766953917182,178.73,9.243e-05,2]
[399968471,1766953917646,208.52,9.821e-05,2]
[399968472,1766953918065,238.31,0.00010398,2]
[399968473,1766953918462,268.1,0.00010976,2]
[399968474,1766953918870,297.89,0.00011554,2]
[399968476,1766953984823,150.0,6.539e-05,2]
[399968477,1766953985282,150.0,7.133e-05,2]
[399968478,1766954066824,5000.0,0.00013172,2]
[399968479,1766954090862,1142.74930806,0.00013172,2]
[399968480,1766954090885,3857.25069194,0.00013172,2]
[399968482,1766954114022,1317.15442799,0.00013172,2]
[399968483,1766954177271,150.0,9.376e-05,2]
[399968508,1766954949362,761.54,0.00028767,120]
[399968510,1766955019619,-300.0,0.00013272,2]
[399968511,1766955019639,-369.41349168,0.00013272,2]
[399968512,1766955021989,-216.07114401,0.00013272,2]
[399968513,1766955032294,-22.51536431,0.00013272,2]
[399968514,1766955032303,-150.0,0.00013272,2]
[399968515,1766955032313,-500.0,0.00013273,2]
[399968516,1766955032322,-500.0,0.00013273,2]
[399968517,1766955032331,-146.26210744,0.00013273,2]
[399968518,1766955032343,-353.73789256,0.00013273,2]
[399968520,1766955032352,-108.16781205,0.00013273,2]
[399968522,1766955032364,-283.41134218,0.00013273,2]
[399968523,1766955032373,-36.32865782,0.00013273,2]
[399968524,1766955032384,-290.8,0.00013273,2]
[399968525,1766955032396,-172.87134218,0.00013273,2]
[399968526,1766955032406,-415.34317373,0.00013273,2]
[399968527,1766955032416,-500.0,0.00013273,2]
[399968528,1766955032425,-500.0,0.00013273,2]
[399968529,1766955032435,-500.0,0.00013699,2]
[399968530,1766955032444,-500.0,0.00013821,2]
[399968531,1766955032454,-497.57560765,0.00013821,2]
[399968532,1766955032464,-500.0,0.00014247,2]
[399968533,1766955032473,-420.0,0.00014551,2]
[399968535,1766955032482,-177.0,0.00015272,2]
[399968537,1766955032491,-4556.03269395,0.00015412,2]
[399968539,1766955032500,-240.73489653,0.00015632,2]
[399968541,1766955032509,-4822.52554749,0.00015741,2]
[399968543,1766955032518,-186.62972568,0.00015741,2]
[399968545,1766955032527,-1036.59729879,0.00015841,2]
[399968547,1766955032536,-1036.59729879,0.00015841,2]
[399968549,1766955032545,-1036.59729879,0.00015841,2]
[399968551,1766955032560,-1036.59729879,0.00015841,2]
[399968553,1766955032569,-1036.59729879,0.00015841,2]
[399968555,1766955032579,-1036.59729879,0.00015841,2]
[399968557,1766955032588,-1036.59729879,0.00015841,2]
[399968559,1766955032597,-1036.59729879,0.00015841,2]
[399968561,1766955032606,-1036.59729879,0.00015841,2]
[399968562,1766955032615,-1036.59729879,0.00015841,2]
[399968563,1766955032624,-1036.59729879,0.00015841,2]
[399968564,1766955032634,-1036.59729879,0.00015841,2]
[399968565,1766955032647,-1036.59729879,0.00015841,2]
[399968566,1766955032656,-1036.59729879,0.00015841,2]
[399968567,1766955032665,-1036.59729879,0.00015841,2]
[399968568,1766955032674,-1036.59729879,0.00015841,2]
[399968569,1766955032683,-1036.59729879,0.00015841,2]
[399968570,1766955032692,-1140.25702868,0.00015841,2]
[399968571,1766955032701,-1140.25702868,0.00015841,2]
[399968572,1766955032711,-1140.25702868,0.00015841,2]
[399968573,1766955032721,-1140.25702868,0.00015841,2]
[399968574,1766955032730,-1140.25702868,0.00015841,2]
[399968575,1766955032739,-1140.25702868,0.00015841,2]
[399968576,1766955032749,-1140.25702868,0.00015841,2]
[399968578,1766955032758,-1140.25702868,0.00015841,2]
[399968579,1766955032767,-1140.25702868,0.00015841,2]
[399968580,1766955032775,-31635.4204041,0.00015848,2]
[399968581,1766955032785,-150.6048275,0.00015848,2]
[399968582,1766955032794,-587.0,0.00015953,2]
[399968583,1766955032804,-392.03863104,0.00016003,2]
[399968584,1766955032813,-705.66953587,0.00016003,2]
[399968585,1766955032822,-1254.52361932,0.00016003,2]
[399968586,1766955032832,-815.1767274,0.00016422,2]
[399968587,1766955032841,-1005.35853574,0.00016455,2]
[399968588,1766955032850,-1212.66162164,0.00016455,2]
[399968590,1766955032861,-442.73414041,0.00016978,2]
[399968591,1766955032870,-386.25744194,0.00016981,7]
[399968593,1766955032879,-204.0,0.00017272,2]
[399968595,1766955032888,-1769.16562506,0.00017289,2]
[399968597,1766955032897,-531.49304473,0.00017289,2]
[399968599,1766955032907,-712.0,0.0001749,2]
[399968601,1766955032916,-1000.0,0.000175,2]
[399968603,1766955032925,-1000.0,0.000175,2]
[399968604,1766955032935,-1000.0,0.000175,2]
[399968606,1766955032944,-1000.0,0.000175,2]
[399968608,1766955032953,-1000.0,0.000175,2]
[399968610,1766955032963,-1000.0,0.000175,2]
[399968611,1766955032973,-1000.0,0.000175,2]
[399968612,1766955032982,-1000.0,0.000175,2]
[399968613,1766955032991,-1000.0,0.000175,2]
[399968614,1766955033000,-1000.0,0.000175,2]
[399968615,1766955033010,-519.317537,0.000175,2]
[399968616,1766955033019,-250.0,0.00017537,2]
[399968617,1766955033028,-760.0980847,0.00017724,2]
[399968618,1766955033037,-150.0,0.00018007,2]
[399968619,1766955033046,-150.0,0.00018144,2]
[399968620,1766955033055,-172.37349202,0.00018219,2]
[399968621,1766955033064,-689.49396807,0.00018219,2]
[399968622,1766955033073,-1551.36142815,0.00018219,2]
[399968623,1766955033083,-2757.97587226,0.00018219,2]
[399968624,1766955033091,-207.13789779,0.00018219,2]
[399968625,1766955033100,-372.84821602,0.00018219,2]
[399968626,1766955033111,-662.84127292,0.00018219,2]
[399968627,1766955033119,-163.27932696,0.00018239,2]
[399968628,1766955033129,-4822.52554748,0.00018264,2]
[399968629,1766955033138,-200.0,0.00018281,2]
[399968630,1766955033147,-31635.4204041,0.00018561,2]
[399968631,1766955033156,-163.27932696,0.00018659,2]
[399968632,1766955033165,-407.84,0.00018768,3]
[399968633,1766955033174,-71428.6,0.00018778,3]
[399968634,1766955033183,-35714.28,0.00018878,3]
[399968635,1766955033192,-150.6048275,0.00018997,2]
[399968636,1766955033201,-151.0,0.00019,2]
[399968637,1766955033210,-200.75766743,0.00019077,2]
[399968638,1766955033218,-163.27932696,0.00019078,2]
[399968639,1766955033226,-3236.40132417,0.00019078,2]
[399968640,1766955033237,-58899.64924003,0.00019078,2]
[399968670,1766955038454,-151.0,0.00015848,2]
[399968671,1766955038465,-151.0,0.00015848,2]
[399968672,1766955038475,-151.0,0.00015848,2]
[399968673,1766955038486,-151.0,0.00017724,2]
[399968674,1766955038496,-151.0,0.00017724,2]
[399968675,1766955038507,-151.0,0.00017724,2]
[399968676,1766955038519,-151.0,0.00018561,2]
[399968677,1766955038532,-151.0,0.00018561,2]
[399968678,1766955038544,-289.193081,0.00018561,2]
[399968679,1766955038556,-151.0,0.00018778,2]
[399968680,1766955038568,-151.0,0.00018778,2]
[399968681,1766955038580,-151.0,0.00018878,2]
[399968682,1766955038590,-151.0,0.00018878,2]
[399968683,1766955038600,-3807.8848928,0.00019078,2]
[399969536,1766955190967,183.66038244,0.00025434,120]
[399969537,1766955191171,187.75772974,0.00025434,120]
[399969543,1766955249740,200.0,0.00028713,120]
[399969544,1766955252178,200.0,0.00028713,120]
[399969545,1766955254388,200.0,0.00028713,120]
[399969561,1766956167263,200.0,0.00028713,120]
[399969562,1766956169382,200.0,0.00028713,120]
[399969576,1766956232569,-500.0,0.00013273,2]
[399969578,1766956232579,-216.07114401,0.00013273,2]
[399969579,1766956232588,-361.35366705,0.00013273,2]
[399969580,1766956232597,-214.70401505,0.00013273,2]
[399969581,1766956232607,-150.0,0.00013273,2]
[399969582,1766956232616,-608.0,0.00013273,2]
[399969583,1766956232625,-553.36780836,0.00013821,2]
[399969584,1766956232634,-177.0,0.00015273,2]
[399969585,1766956232644,-1200.0,0.0001654,2]
[399969586,1766956232653,-1543.48473799,0.00016541,2]
[399969587,1766956232662,-50000.0,0.00017273,2]
[399969588,1766956232671,-204.0,0.00017273,2]
[399969590,1766956232680,-300.0,0.00017306,2]
[399969592,1766956232690,-13.99093112,0.00017307,2]
[399969593,1766956232701,-283.677,0.00017307,2]
[399969594,1766956232716,-2.33206888,0.00017307,2]
[399969595,1766956232726,-300.0,0.00017307,2]
[399969596,1766956232735,-300.0,0.00017307,2]
[399969597,1766956232746,-2295.73550071,0.00017308,2]
[399969610,1766956237581,-175.28612336,0.00017308,2]
[399969611,1766956237591,-271.65891138,0.00017308,2]
[399969612,1766956237602,-121.71668666,0.00017308,2]
[399969613,1766956237612,-880.22838575,0.00017409,2]
[399969614,1766956237621,-880.22838575,0.00017409,2]
[399969615,1766956237631,-880.22838575,0.00017409,2]
[399969616,1766956237641,-880.22838575,0.00017409,2]
[399969617,1766956237650,-880.22838575,0.00017409,2]
[399969618,1766956237659,-880.22838575,0.00017409,2]
[399969619,1766956237668,-880.22838575,0.00017409,2]
[399969620,1766956237678,-880.22838575,0.00017409,2]
[399969621,1766956237687,-880.22838575,0.00017409,2]
[399969622,1766956237696,-880.22838575,0.00017409,2]
[399969623,1766956237706,-160.7310051,0.00017409,2]
[399969624,1766956237715,-550.31813362,0.00017409,2]
[399969625,1766956237725,-880.22838575,0.00017409,2]
[399969626,1766956237735,-880.22838575,0.00017409,2]
[399969627,1766956237746,-880.22838575,0.00017409,2]
[399969628,1766956237755,-880.22838575,0.00017409,2]
[399969629,1766956237764,-880.22838575,0.00017409,2]
[399969630,1766956237775,-880.22838575,0.00017409,2]
[399969631,1766956237785,-880.22838575,0.00017409,2]
[399969632,1766956237795,-880.22838575,0.00017409,2]
[399969633,1766956237804,-963.5530141,0.00017756,7]
[399969634,1766956237814,-1013.05760592,0.00018119,2]
[399969635,1766956237823,-2941.6430249,0.00018127,2]
[399969636,1766956237833,-1013.05760591,0.00018325,2]
[399969637,1766956237843,-1013.05760591,0.0001853,2]
[399969638,1766956237853,-71428.6,0.00018678,3]
[399969639,1766956237863,-151.0,0.00018678,2]
[399969640,1766956237874,-1013.05760591,0.00018736,2]
[399969641,1766956237884,-324.925733,0.00018751,2]
[399969642,1766956237894,-3378.9753451,0.00018751,2]
[399969643,1766956237905,-150.6048275,0.00018751,2]
[399969644,1766956237914,-49705.384915,0.00018751,2]
[399969645,1766956237925,-151.0,0.00018751,2]
[399969646,1766956237934,-35714.28,0.00018878,3]
[399969647,1766956237944,-500.0,0.00018904,2]
[399969648,1766956237953,-1013.05760591,0.00018941,2]
[399969649,1766956237962,-200.0,0.00018977,2]
[399969650,1766956237972,-989711.8039601,0.00018978,2]
[399969651,1766956237985,-1586.21195227,0.00018978,2]
[399969652,1766956237997,-2352.00076887,0.00018978,2]
[399970126,1766956244264,-4205.40000002,0.00018978,2]
[399970127,1766956244279,-736.26666665,0.00018978,2]
[399970267,1766956245713,-680.90757339,0.00018978,2]
[399970270,1766956245728,-727.4090787,0.00018978,2]
[399970272,1766956245737,-500.0,0.00019041,2]
[399970274,1766956245747,-151.0,0.00019078,2]
[399970276,1766956245756,-151.0,0.00019078,2]
[399970278,1766956245766,-157.78674401,0.00019078,2]
[399970280,1766956245775,-500.0,0.00019178,2]
[399970282,1766956245784,-386.73237179,0.00019178,2]
[399970284,1766956245793,-696.11826922,0.00019178,2]
[399970286,1766956245803,-1237.54358972,0.00019178,2]
[399970288,1766956245812,-306.41972899,0.00019178,2]
[399970290,1766956245821,-151.0,0.00019178,2]
[399970292,1766956245831,-151.0,0.00019178,2]
[399970294,1766956245840,-151.0,0.00019178,2]
[399970296,1766956245849,-151.0,0.00019178,2]
[399970297,1766956245858,-151.0,0.00019178,2]
[399970300,1766956245867,-151.0,0.00019178,2]
[399970303,1766956245877,-151.0,0.00019178,2]
[399970304,1766956245887,-151.0,0.00019178,2]
[399970306,1766956245897,-151.0,0.00019178,2]
[399970308,1766956245906,-151.0,0.00019178,2]
[399970311,1766956245916,-151.0,0.00019178,2]
[399970312,1766956245925,-151.0,0.00019178,2]
[399970315,1766956245935,-151.0,0.00019178,2]
[399970316,1766956245945,-151.0,0.00019178,2]
[399970319,1766956245955,-127.1119722,0.00019178,2]
[399970321,1766956245967,-23.8880278,0.00019178,2]
[399970323,1766956245977,-151.0,0.00019178,2]
[399970325,1766956245986,-151.0,0.00019178,2]
[399970327,1766956245996,-151.0,0.00019178,2]
[399970329,1766956246005,-151.0,0.00019178,2]
[399970331,1766956246016,-151.0,0.00019178,2]
[399970333,1766956246025,-155.465049,0.00019178,2]
[399970335,1766956246035,-151.0,0.00019178,2]
[399970337,1766956246044,-252.993084,0.00019178,2]
[399970339,1766956246053,-103.54244105,0.00019178,2]
[399970671,1766956861621,1411.99765353,0.00013172,2]
[399970673,1766956990520,175.412045,0.00025511,120]
[399970674,1766957013320,500.0,0.000239,120]
[399970675,1766957014115,554.09,0.000239,120]
[399970676,1766957032789,1637.1982,0.00028767,120]
[399970677,1766957175809,150.0,6.865e-05,2]
[399970678,1766957176216,150.0,7.489e-05,2]
[399970680,1766957230023,152.04790479,0.00025511,120]
[399970681,1766957240131,150.0,6.837e-05,2]
[399970685,1766957284444,-283.92885599,0.00013272,2]
[399970690,1766957344401,-176.42180026,0.00013272,2]
[399970695,1766957404537,-212.89528722,0.00013272,2]
[399970696,1766957407786,-87.10471278,0.00013272,2]
[399970697,1766957407808,-108.23366183,0.00013272,2]
[399970698,1766957414194,-246.40594901,0.00013272,2]
[399970699,1766957429707,2244.6,0.00024699,120]
[399970700,1766957429954,2244.6,0.00024699,120]
[399970701,1766957430196,2244.6,0.00024699,120]
[399970702,1766957430428,2244.6,0.00024699,120]
[399970703,1766957430658,2244.6,0.00024699,120]
[399970704,1766957430895,2244.7577195,0.00024699,120]
[399970716,1766957431667,-253.36038916,0.00013272,2]
[399970717,1766957431676,-500.0,0.00013273,2]
[399970718,1766957431685,-475.31518547,0.00013273,2]
[399970719,1766957431696,-24.68481453,0.00013273,2]
[399970720,1766957431706,-500.0,0.00013273,2]
[399970721,1766957431716,-500.0,0.00013273,2]
[399970722,1766957431725,-500.0,0.00013273,2]
[399970723,1766957431736,-283.92885599,0.00013273,2]
[399970724,1766957431749,-500.0,0.00013273,2]
[399970725,1766957431758,-150.0,0.00013463,2]
[399970726,1766957431767,-302.0,0.000135,2]
[399970727,1766957431776,-23819.23313753,0.000135,2]
[399970728,1766957431787,-377.25894517,0.000135,2]
[399970730,1766957431798,-913.68375377,0.000135,2]
[399970869,1766957437702,-509.23438404,0.00013499,2]
[399970871,1766957437715,-250.95868338,0.00013499,2]
[399970874,1766957437725,-760.19306742,0.00013499,2]
[399970876,1766957437738,-760.19306742,0.00013499,2]
[399970878,1766957437748,-428.40518178,0.00013499,2]
[399970881,1766957437772,-331.78788564,0.00013499,2]
[399970883,1766957437783,-760.19306742,0.00013499,2]
[399970886,1766957437793,-760.19306742,0.00013499,2]
[399970888,1766957437804,-760.19306742,0.00013499,2]
[399970890,1766957437816,-760.19306742,0.00013499,2]
[399970892,1766957437826,-760.19306742,0.00013499,2]
[399970894,1766957437837,-760.19306742,0.00013499,2]
[399970896,1766957437847,-500.0,0.00013499,2]
[399970898,1766957437856,-500.0,0.00013499,2]
[399970900,1766957437866,-154.28699706,0.00013499,2]
[399970903,1766957437876,-500.0,0.00013499,2]
[399970905,1766957437886,-271.64726446,0.00013499,2]
[399970907,1766957437896,-583.41881402,0.00013499,2]
[399970909,1766957437906,-760.19306742,0.00013499,2]
[399970911,1766957437916,-500.0,0.00013499,2]
[399970913,1766957437926,-500.0,0.00013499,2]
[399970915,1766957437936,-500.0,0.00013499,2]
[399970917,1766957437946,-500.0,0.00013499,2]
[399970919,1766957437957,-228.98243618,0.00013499,2]
[399970920,1766957437970,-271.01756382,0.00013499,2]
[399970921,1766957437981,-500.0,0.00013499,2]
[399970922,1766957437992,-500.0,0.00013499,2]
[399970923,1766957438003,-312.77257335,0.00013499,2]
[399970924,1766957438015,-117.12208673,0.00013499,2]
[399970925,1766957438026,-760.19306742,0.00013499,2]
[399970926,1766957438037,-400.52469169,0.00013499,2]
[399970927,1766957438047,-20445.25080984,0.000135,2]
[399970928,1766957438058,-5866.42875184,0.00013599,2]
[399970929,1766957438072,-899.26415486,0.00013599,2]
[399970930,1766957438083,-344.500614,0.00013699,2]
[399970931,1766957438094,-440.09450325,0.00013699,2]
[399970981,1766957440070,-60.29947339,0.00013699,2]
[399970983,1766957440080,-501.74110705,0.00013699,2]
[399970985,1766957440090,-500.74703084,0.00013699,2]
[399970987,1766957440099,-525.56532703,0.00013699,2]
[399970989,1766957440108,-158.0501835,0.00013699,2]
[399970992,1766957440118,-565.20426048,0.00013821,2]
[399970994,1766957440127,-500.0,0.00013821,2]
[399971024,1766957440363,-500.0,0.00013821,2]
[399971026,1766957440377,-500.0,0.00013821,2]
[399971028,1766957440386,-746.26443429,0.00013821,2]
[399971030,1766957440395,-500.0,0.00013821,2]
[399971032,1766957440405,-163.45263764,0.00013973,2]
[399971034,1766957440413,-806.18859008,0.000143,7]
[399971037,1766957440429,-264.12583363,0.000143,7]
[399971446,1766957444219,-1384.11225532,0.000143,7]
[399971514,1766957444988,-599.71174887,0.000143,7]
[399971516,1766957444998,-420.0,0.00014551,2]
[399971518,1766957445007,-177.0,0.00015463,2]
[399971521,1766957445016,-643.58641988,0.00015753,2]
[399971524,1766957445025,-3046.26199192,0.00015936,2]
[399971611,1766957445884,-957.63372158,0.00015936,2]
[399971613,1766957445894,-587.0,0.00015953,2]
[399971615,1766957445903,-6765.69290667,0.00016425,2]
[399971617,1766957445913,-500.0,0.00016438,2]
[399971619,1766957445923,-500.0,0.00016438,2]
[399971621,1766957445932,-500.0,0.00016438,2]
[399971623,1766957445942,-500.0,0.00016438,2]
[399971625,1766957445950,-595.15,0.00016438,2]
[399971627,1766957445960,-157.60139091,0.00017199,2]
[399971628,1766957445969,-1936.4,0.00017304,2]
[399971630,1766957445978,-1936.4,0.00017403,2]
[399971632,1766957445987,-1936.4,0.00017404,2]
[399971634,1766957445997,-1936.4,0.00017404,2]
[399971636,1766957446006,-500.0,0.00017406,2]
[399971638,1766957446015,-500.0,0.00017406,2]
[399971640,1766957446024,-2244.6,0.00017406,2]
[399971642,1766957446033,-2244.6,0.00017406,2]
[399971644,1766957446043,-2244.6,0.00017406,2]
[399971646,1766957446051,-500.0,0.00017407,2]
[399971648,1766957446060,-500.0,0.00017407,2]
[399971650,1766957446070,-500.0,0.00017407,2]
[399971652,1766957446079,-500.0,0.00017407,2]